bitfinex/quotes_ETHUSD_20240718
["timestamp","ask_amount","ask_price","bid_price","bid_amount"]
[1721291704997,2.3992,3443.2,3442.4,2.94311436]
[1721291704998,2.90443,3443.1,3442.4,2.94311436]
[1721291705692,2.90444,3443.0,3442.4,2.94311436]
[1721291706303,2.90444,3443.0,3442.4,0.03825436]
[1721291706673,2.90444,3443.0,3442.3,2.90501]
[1721291706880,2.90444,3443.0,3442.5,0.03887969]
[1721291707068,2.90444,3443.0,3442.3,2.90501]
[1721291707277,2.90444,3443.0,3442.6,0.03889517]
[1721291707475,3.725233,3443.0,3442.4,2.90494]
[1721291707788,2.90444,3443.0,3442.4,2.90494]
[1721291707985,2.90444,3443.0,3442.5,0.03889517]
[1721291707986,0.05059932,3442.9,3442.5,0.03889517]
[1721291708189,0.05059932,3442.9,3442.2,2.90507]
[1721291708368,0.05059932,3442.9,3442.3,0.03890137]
[1721291708866,2.90488,3442.5,3442.3,0.03890137]
[1721291709078,2.90488,3442.5,3441.9,2.90537]
[1721291709292,2.90488,3442.5,3442.4,0.03890137]
[1721291709492,2.90488,3442.5,3441.9,2.90537]
[1721291710010,2.90488,3442.5,3442.0,0.03890137]
[1721291710374,2.90495,3442.4,3442.0,0.03890137]
[1721291711073,5.19838,3442.6,3442.0,0.03890137]
[1721291711402,2.2936,3442.6,3442.0,0.03890137]
[1721291712418,2.41289932,3442.9,3442.0,2.94417137]
[1721291712593,3.05059932,3442.9,3442.3,2.90501]
[1721291712976,0.05059932,3442.9,3442.4,2.94380137]
[1721291713703,0.05059932,3442.9,3442.4,3.25319947]
[1721291713878,0.05059932,3442.9,3442.5,2.90483]
[1721291714302,0.05059932,3442.9,3442.6,0.03915845]
[1721291718630,0.93652325,3442.9,3442.6,0.03915845]
[1721291718829,0.93652325,3442.9,3442.4,3.2143381]
[1721291718993,2.2788,3442.8,3442.5,0.0393443]
[1721291719184,2.2788,3442.8,3442.4,0.3093981]
[1721291719519,3.22625233,3442.7,3442.4,0.3093981]
[1721291719883,0.05059932,3442.9,3442.5,0.0393443]
[1721291720185,0.05059932,3442.9,3442.5,2.90478]
[1721291720383,0.05059932,3442.9,3442.8,5.80922]
[1721291720605,7.36,3443.5,3443.4,2.9041]
[1721291720791,7.36,3443.5,3443.4,5.2993]
[1721291721006,7.36,3443.5,3443.4,8.77269908]
[1721291724208,7.36,3443.5,3443.4,8.20740731]
[1721291724699,0.05058155,3443.9,3443.7,2.9038]
[1721291725123,0.05058155,3443.9,3443.8,0.0388798]
[1721291725486,0.05058155,3443.9,3443.7,2.9038]
[1721291725714,0.05058155,3443.9,3443.8,0.0388798]
[1721291726115,0.05058155,3443.9,3443.7,2.9038]
[1721291726424,0.05058155,3443.9,3443.8,0.03889218]
[1721291726621,0.05058155,3443.9,3443.7,2.9038]
[1721291726920,0.05058155,3443.9,3443.8,0.03889218]
[1721291727325,0.05058155,3443.9,3443.7,2.9038]
[1721291727521,0.05058155,3443.9,3443.8,0.03889218]
[1721291727914,0.05058155,3443.9,3443.5,2.90402]
[1721291728225,0.05058155,3443.9,3443.7,2.90384]
[1721291728589,0.05058155,3443.9,3443.8,0.0384679]
[1721291728793,0.05058155,3443.9,3443.7,2.90384]
[1721291729128,0.05058155,3443.9,3443.8,0.347866]
[1721291731090,0.05058155,3443.9,3443.8,0.0384679]
[1721291731290,0.05058155,3443.9,3443.6,2.90392]
[1721291731538,0.05058155,3443.9,3443.8,0.0384679]
[1721291731702,0.05058155,3443.9,3443.1,2.9043]
[1721291732071,2.77062415,3443.8,3442.4,2.368]
[1721291732194,2.90418,3443.4,3442.4,5.27288]
[1721291732548,2.90432,3443.2,3442.5,2.90486]
[1721291732835,2.2769,3443.1,3442.5,2.90486]
[1721291733144,3.085457,3443.1,3442.5,2.90486]
[1721291733997,3.085457,3443.1,3442.6,2.90477]
[1721291734202,0.808557,3443.1,3442.6,2.90477]
[1721291736221,3.712917,3443.1,3442.4,2.90488]
[1721291736724,3.712917,3443.1,3442.0,2.4145]
[1721291736725,2.90466,3442.8,3442.1,2.90513]
[1721291737617,0.87645465,3442.7,3442.2,0.09025852]
[1721291737924,3.78115465,3442.7,3442.2,0.09025852]
[1721291738239,2.9047,3442.7,3442.2,0.09025852]
[1721291738435,1.45742293,3442.6,3441.9,2.90534]
[1721291738742,0.580928,3442.6,3442.3,0.09025852]
[1721291738893,0.580928,3442.6,3442.0,2.90528]
[1721291739092,0.580928,3442.6,3442.4,0.09025852]
[1721291739314,0.3485628,3442.5,3442.0,2.90528]
[1721291739514,3.2534328,3442.5,3441.8,2.9054]
[1721291739724,0.87653341,3442.4,3441.8,2.9054]
[1721291739999,2.4632,3442.3,3441.8,2.9054]
[1721291740198,0.87660774,3442.2,3441.8,2.9054]
[1721291740552,0.65932405,3442.2,3441.8,2.9054]
[1721291740708,0.65932405,3442.2,3441.6,2.90555]
[1721291741113,3.83247385,3442.1,3441.4,2.90574]
[1721291741315,2.95579567,3442.1,3441.4,2.90574]
[1721291741511,0.87668773,3442.0,3441.4,2.90574]
[1721291741822,0.44918075,3441.9,3441.4,2.90574]
[1721291742799,0.44918075,3441.9,3441.5,0.09079122]
[1721291743444,2.90546,3441.8,3441.5,0.09079122]
[1721291743744,2.90546,3441.8,3441.2,2.90595]
[1721291743928,2.90546,3441.8,3441.6,0.09111961]
[1721291744135,0.62599308,3441.7,3441.0,2.90612]
[1721291744536,2.90546,3441.8,3441.0,2.90612]
[1721291744901,2.90546,3441.8,3441.0,5.81216]
[1721291745106,2.90546,3441.8,3441.0,2.90604]
[1721291745415,2.90546,3441.8,3441.1,2.90602]
[1721291745962,5.81099,3441.8,3441.1,2.90602]
[1721291746111,6.39714857,3441.8,3441.1,2.90602]
[1721291746312,3.49161857,3441.8,3441.1,2.90602]
[1721291746549,2.90554,3441.7,3441.1,2.90602]
[1721291747480,3.49160857,3441.8,3441.1,2.90602]
[1721291748065,0.05059567,3442.1,3441.4,2.90576]
[1721291748776,2.95584567,3442.1,3441.4,2.90576]
[1721291749374,2.90555,3441.7,3441.0,2.90608]
[1721291749938,2.90542,3441.9,3441.1,2.90598]
[1721291750171,2.90547,3441.8,3441.1,2.90598]
[1721291750372,3.49161857,3441.8,3441.1,2.90598]
[1721291750541,2.90555,3441.7,3441.1,2.90598]
[1721291750939,5.23515,3441.7,3441.1,2.90598]
[1721291751552,0.58614857,3441.8,3441.1,2.90598]
[1721291752152,0.58614857,3441.8,3441.3,2.90586]
[1721291752473,0.58211686,3441.7,3441.2,2.90596]
[1721291754062,0.58211686,3441.7,3441.3,2.90587]
[1721291755478,0.58211686,3441.7,3441.1,2.90597]
[1721291755778,3.48766686,3441.7,3441.1,2.90597]
[1721291757486,3.48766686,3441.7,3440.9,2.90619]
[1721291757665,0.34876669,3441.6,3440.9,2.90619]
[1721291757861,2.90573,3441.5,3441.0,0.09142021]
[1721291758187,2.90592,3441.3,3441.0,0.09142021]
[1721291758363,2.90604,3441.1,3441.0,0.09142021]
[1721291758858,2.9062,3441.0,3440.4,2.90663]
[1721291759360,2.90621,3440.9,3440.2,2.90673]
[1721291759773,2.90621,3440.9,3440.3,2.90671]
[1721291761459,0.05061619,3440.8,3440.3,2.90671]
[1721291767207,2.448,3440.7,3440.1,2.90685]
[1721291767410,2.448,3440.7,3440.2,0.55]
[1721291767411,3.33723502,3440.7,3440.2,0.55]
[1721291767606,3.33723502,3440.7,3440.2,3.4568]
[1721291768115,3.33723502,3440.7,3440.2,0.55]
[1721291768406,3.33723502,3440.7,3440.1,6.36372]
[1721291768607,3.33723502,3440.7,3440.1,3.45684]
[1721291768811,3.33723502,3440.7,3440.1,3.45682]
[1721291769288,6.24362502,3440.7,3440.1,3.45682]
[1721291769488,0.95040923,3440.6,3440.1,3.45682]
[1721291770924,0.95040923,3440.6,3440.1,0.55]
[1721291772304,3.85692923,3440.6,3440.1,0.55]
[1721291772725,3.85692923,3440.6,3440.2,0.09177058]
[1721291773202,3.85692923,3440.6,3440.1,0.55]
[1721291773529,0.92619354,3440.5,3440.3,0.09177058]
[1721291773731,0.92619354,3440.5,3440.1,0.55]
[1721291774042,2.90652,3440.6,3440.4,0.09177058]
[1721291774254,2.90652,3440.6,3440.1,0.55]
[1721291774394,2.90652,3440.6,3440.5,0.09177058]
[1721291774596,2.90652,3440.6,3440.1,2.915]
[1721291774805,2.90652,3440.6,3440.5,0.09177058]
[1721291775011,3.52322273,3440.6,3440.5,0.09177058]
[1721291775296,3.52322273,3440.6,3440.5,0.09214888]
[1721291775535,3.52322273,3440.6,3440.1,2.915]
[1721291775845,2.90652,3440.6,3440.5,0.09214888]
[1721291775994,2.90652,3440.6,3440.1,2.915]
[1721291776195,2.90652,3440.6,3440.5,0.09214888]
[1721291776596,0.05061619,3440.8,3440.2,2.90679]
[1721291776837,3.05061619,3440.8,3440.5,0.09213647]
[1721291777015,4.32539632,3440.8,3440.2,2.90679]
[1721291777200,5.95697619,3440.8,3440.6,0.09215198]
[1721291777401,2.90639,3440.7,3440.1,2.915]
[1721291777602,2.90639,3440.7,3440.1,5.82188]
[1721291779429,2.90639,3440.7,3440.1,3.45688]
[1721291782015,2.90639,3440.7,3440.1,0.55]
[1721291782208,2.90639,3440.7,3440.1,3.45685]
[1721291782699,2.90649,3440.6,3440.1,3.45685]
[1721291784149,5.95697619,3440.8,3440.1,3.45685]
[1721291784330,5.95697619,3440.8,3440.1,6.36368]
[1721291784526,5.95697619,3440.8,3440.1,3.45683]
[1721291785537,5.95697619,3440.8,3440.1,6.36366]
[1721291786728,5.95697619,3440.8,3440.1,3.45683]
[1721291787041,0.87700465,3440.7,3440.1,6.36366]
[1721291787844,0.87700465,3440.7,3440.2,0.09195586]
[1721291788142,0.87700465,3440.7,3440.1,6.36366]
[1721291788308,0.87700465,3440.7,3440.3,0.09190624]
[1721291788509,0.87700465,3440.7,3440.1,6.36366]
[1721291788838,0.87700465,3440.7,3440.2,0.09190624]
[1721291789210,0.87700465,3440.7,3440.1,6.36366]
[1721291789411,0.87700465,3440.7,3440.3,0.09190624]
[1721291789642,2.38448736,3440.7,3440.1,3.45683]
[1721291789838,5.95697619,3440.8,3440.4,0.09190624]
[1721291790044,0.87702048,3440.7,3440.1,6.36365]
[1721291790260,0.87702048,3440.7,3440.5,0.09190624]
[1721291790435,0.87702048,3440.7,3440.1,3.45682]
[1721291790621,0.87702048,3440.7,3440.6,0.09190624]
[1721291790952,2.25543366,3440.7,3440.6,0.09190624]
[1721291791249,2.25543366,3440.7,3440.1,3.45682]
[1721291791453,4.28479318,3440.7,3440.6,0.09193105]
[1721291791746,5.16182603,3440.7,3440.6,0.40139582]
[1721291792831,5.16182603,3440.7,3440.6,0.30948027]
[1721291793046,5.16183807,3440.7,3440.6,0.30948027]
[1721291793353,5.16183783,3440.7,3440.6,0.30948027]
[1721291793724,5.16184102,3440.7,3440.6,0.30948027]
[1721291796226,5.16181429,3440.7,3440.6,0.30948027]
[1721291798634,9.3111409,3440.7,3440.6,0.30948027]
[1721291799171,7.19117318,3440.7,3440.6,0.30948027]
[1721291799468,9.3111939,3440.7,3440.6,0.30948027]
[1721291800535,15.3670739,3440.7,3440.6,0.30948027]
[1721291801440,18.3670739,3440.7,3440.6,0.30948027]
[1721291801641,20.19355913,3440.7,3440.6,0.30948027]
[1721291801840,18.3670739,3440.7,3440.6,0.30948027]
[1721291802370,18.36732508,3440.7,3440.6,0.30948027]
[1721291802949,2.90741,3439.5,3438.8,2.4609]
[1721291803153,2.90741,3439.5,3438.9,0.09200861]
[1721291803154,0.87718827,3439.4,3438.9,0.09200861]
[1721291803353,0.87718827,3439.4,3438.9,0.92000861]
[1721291803590,0.05056967,3439.3,3438.9,0.92000861]
[1721291804184,0.87731577,3439.2,3438.9,0.92000861]
[1721291804385,0.87731577,3439.2,3439.0,0.55]
[1721291804869,0.87731577,3439.2,3439.1,0.09200861]
[1721291805069,0.87731577,3439.2,3439.1,0.64200861]
[1721291805266,0.87738811,3439.2,3439.1,0.64200861]
[1721291805997,0.05056967,3439.3,3439.2,8.0948]
[1721291806166,0.05056967,3439.3,3439.2,8.6448]
[1721291806514,0.30364881,3440.2,3439.8,2.90712]
[1721291806656,0.05056204,3440.0,3439.9,3.45703]
[1721291806856,0.05056204,3440.0,3439.9,4.28503]
[1721291807174,7.36,3440.5,3439.9,5.17519254]
[1721291807492,7.36,3440.5,3440.1,0.828]
[1721291807493,0.87704063,3440.4,3440.1,0.828]
[1721291807985,0.87704063,3440.4,3440.2,0.09200861]
[1721291808185,0.87704953,3440.3,3440.2,0.09200861]
[1721291808361,0.87704953,3440.4,3440.0,2.90694]
[1721291808572,0.87704953,3440.3,3440.2,0.09200861]
[1721291808763,0.87704953,3440.3,3440.0,3.50800686]
[1721291808969,7.41055299,3440.5,3440.2,0.09200861]
[1721291809169,7.41055299,3440.5,3440.1,0.55]
[1721291809170,0.87701046,3440.4,3440.1,0.55]
[1721291809364,0.87701046,3440.4,3440.3,0.09200861]
[1721291809789,7.36,3440.5,3440.3,0.55]
[1721291809994,7.36,3440.5,3440.3,0.72010669]
[1721291810195,7.36,3440.5,3440.4,3.45663]
[1721291810497,7.36,3440.5,3440.4,3.54863861]
[1721291811105,0.30367067,3440.9,3440.5,2.90654]
[1721291811272,0.87689304,3440.8,3440.6,2.90645]
[1721291811473,0.87689304,3440.8,3440.7,0.55]
[1721291811800,0.87689304,3440.8,3440.7,0.64200861]
[1721291812379,0.87689304,3440.8,3440.7,0.09200861]
[1721291812582,0.05054574,3440.8,3440.5,2.90654]
[1721291812894,0.87689304,3440.7,3440.5,2.90654]
[1721291814215,0.05054574,3440.8,3440.5,2.90654]
[1721291814384,0.87690967,3440.7,3440.1,2.90683]
[1721291814579,0.87690967,3440.7,3440.2,3.45673]
[1721291817320,0.05054574,3440.8,3440.2,3.45673]
[1721291817527,0.87694254,3440.7,3440.2,3.45673]
[1721291817824,0.87694254,3440.7,3440.3,0.09179414]
[1721291818292,0.87694254,3440.7,3440.2,3.45673]
[1721291818493,0.87694254,3440.7,3440.4,0.09179414]
[1721291818699,0.87694254,3440.7,3440.2,3.45673]
[1721291818904,0.87694254,3440.7,3440.5,0.09179414]
[1721291819104,0.87694254,3440.7,3440.2,3.45673]
[1721291819393,0.87694254,3440.7,3440.2,6.36346]
[1721291819814,0.87694254,3440.7,3440.3,0.09179414]
[1721291820139,0.87694254,3440.7,3440.2,6.36346]
[1721291820428,0.05054574,3440.8,3440.3,0.09179414]
[1721291820607,0.87694227,3440.7,3440.3,2.99851414]
[1721291821597,0.05054574,3440.8,3440.3,2.99851414]
[1721291821798,0.87693297,3440.7,3440.3,2.99851414]
[1721291822125,0.05054574,3440.8,3440.3,2.99851414]
[1721291822423,0.05054574,3440.8,3440.5,2.90653]
[1721291822994,0.05054574,3440.8,3440.6,0.09179414]
[1721291824419,0.05054574,3440.8,3440.6,2.99819414]
[1721291824725,0.05054574,3440.8,3440.6,0.09179414]
[1721291824925,0.05054574,3440.8,3440.6,2.90646]
[1721291825143,0.05054574,3440.8,3440.7,0.09180964]
[1721291825298,0.92744044,3440.8,3440.7,0.09180964]
[1721291826035,0.92744044,3440.8,3440.5,2.90654]
[1721291826240,0.05054574,3440.8,3440.7,0.09175382]
[1721291826534,0.9274698,3440.8,3440.7,0.09175382]
[1721291826739,0.9274698,3440.8,3440.5,2.90654]
[1721291826912,0.05054574,3440.8,3440.5,5.81303]
[1721291827104,0.05054574,3440.8,3440.6,0.09175382]
[1721291829232,0.05054574,3440.8,3440.6,2.99819382]
[1721291830613,0.05054574,3440.8,3440.7,5.81276]
[1721291830819,0.05054574,3440.8,3440.7,7.19076]
[1721291831140,7.36,3441.1,3441.0,2.90613]
[1721291831316,7.36,3441.1,3441.0,2.99779591]
[1721291831714,7.36,3441.1,3441.0,0.09166591]
[1721291831919,7.36,3441.1,3440.7,2.90631]
[1721291832133,7.36,3441.1,3440.8,0.09166591]
[1721291832341,7.36,3441.1,3440.7,3.73431]
[1721291832649,7.36,3441.1,3440.8,0.09166591]
[1721291833157,7.36,3441.1,3440.9,2.99787591]
[1721291833330,7.36,3441.1,3441.0,2.90613]
[1721291833746,7.36,3441.1,3441.0,2.99779591]
[1721291835364,0.05054026,3441.2,3441.0,2.99779591]
[1721291835530,0.05054026,3441.2,3441.1,2.90604]
[1721291835729,0.05054026,3441.2,3441.1,12.47762281]
[1721291835957,0.05054026,3441.2,3441.1,13.0611695]
[1721291836258,7.36,3442.6,3442.1,2.90519]
[1721291836430,5.33971,3442.8,3442.1,3.73319]
[1721291836431,0.30366401,3442.2,3442.1,3.73319]
[1721291836827,0.05052656,3442.4,3442.3,5.81006]
[1721291837020,0.30363815,3442.6,3442.5,2.9048]
[1721291837372,0.30363815,3442.6,3442.5,4.2828]
[1721291837674,0.30363815,3442.6,3442.5,7.18766]
[1721291838389,0.30363815,3442.6,3442.5,6.35966]
[1721291838731,7.36,3443.1,3442.9,2.90451]
[1721291838950,0.30368405,3443.5,3442.9,2.90451]
[1721291839146,1.28808841,3443.4,3442.9,2.90451]
[1721291839984,1.28808841,3443.4,3442.7,2.90463]
[1721291840278,2.90437,3443.1,3442.4,2.90492]
[1721291840613,2.90437,3443.1,3442.5,2.90485]
[1721291840829,0.290437,3443.0,3442.5,2.90485]
[1721291841118,0.290437,3443.0,3442.6,2.90476]
[1721291841427,2.90441,3443.1,3442.3,3.455]
[1721291841569,2.90451,3443.0,3442.3,2.905]
[1721291842071,2.90452,3442.9,3442.3,2.905]
[1721291842279,0.580893,3442.8,3442.3,2.905]
[1721291842667,0.580893,3442.8,3441.6,7.49]
[1721291842668,0.580893,3442.8,3441.9,2.90535]
[1721291842868,0.580893,3442.8,3441.5,2.9057]
[1721291842869,2.90494,3442.5,3441.7,2.9055]
[1721291843072,2.2851,3442.4,3441.6,2.9056]
[1721291843377,2.2851,3442.4,3441.7,2.9055]
[1721291844698,2.4063,3442.8,3442.1,2.90517]
[1721291845033,3.0,3443.0,3442.2,2.90509]
[1721291845034,5.90446,3443.0,3442.2,2.90509]
[1721291845336,3.20458,3442.9,3442.2,2.90509]
[1721291845573,3.20458,3442.9,3442.0,2.90522]
[1721291845840,2.9047,3442.7,3441.8,2.90543]
[1721291845989,2.9047,3442.7,3441.9,0.55]
[1721291846193,0.610928,3442.6,3441.9,3.45535]
[1721291846830,0.610928,3442.6,3441.9,0.55]
[1721291847028,3.515718,3442.6,3441.9,0.55]
[1721291847184,3.515718,3442.6,3441.9,3.45536]
[1721291847387,3.515718,3442.6,3441.9,0.55]
[1721291847633,0.6420418,3442.5,3441.9,0.55]
[1721291847837,0.6420418,3442.5,3442.0,0.09071122]
[1721291848607,0.3,3442.9,3442.1,5.36062]
[1721291848822,0.3,3442.9,3442.2,2.9051]
[1721291849018,0.3,3442.9,3442.2,2.99577714]
[1721291849329,3.20452,3442.9,3442.2,2.99577714]
[1721291849524,0.610891,3442.8,3442.2,2.99577714]
[1721291851515,0.610891,3442.8,3442.2,0.09067714]
[1721291851916,2.90485,3442.6,3442.2,0.09067714]
[1721291852117,2.90485,3442.6,3441.9,3.45537]
[1721291852318,2.90485,3442.6,3442.3,0.09067404]
[1721291852518,2.90485,3442.6,3441.9,3.45537]
[1721291852725,2.90485,3442.6,3442.4,0.09067404]
[1721291853033,0.580961,3442.5,3441.9,3.45537]
[1721291854233,0.580961,3442.5,3442.1,2.90519]
[1721291854413,2.90474,3442.7,3442.1,2.90519]
[1721291855150,3.50820371,3442.9,3442.1,2.90519]
[1721291855534,2.90471,3442.7,3442.1,2.90519]
[1721291856851,3.50820371,3442.9,3442.1,2.90519]
[1721291857051,0.60364371,3442.9,3442.3,2.90503]
[1721291857265,0.30364371,3442.9,3442.3,2.90503]
[1721291857758,3.20816371,3442.9,3442.3,2.90503]
[1721291858053,2.90443,3443.1,3442.3,5.81]
[1721291859022,2.90443,3443.1,3442.4,2.90494]
[1721291859821,2.90445,3443.0,3442.2,5.33405]
[1721291860016,2.90445,3443.0,3442.2,2.90505]
[1721291860241,2.90453,3442.9,3442.2,2.90505]
[1721291860441,2.90453,3442.9,3442.1,2.90516]
[1721291860653,2.90461,3442.8,3442.1,2.90516]
[1721291860855,0.580906,3442.7,3442.1,2.90516]
[1721291861434,0.580906,3442.7,3442.2,2.90511]
[1721291861629,2.90461,3442.8,3442.2,2.90511]
[1721291862742,2.90461,3442.8,3442.3,0.09066165]
[1721291863056,2.90461,3442.8,3442.2,2.90511]
[1721291863358,2.90461,3442.8,3442.3,0.09067094]
[1721291863677,2.90461,3442.8,3442.2,2.90511]
[1721291863825,3.65414728,3442.8,3442.2,2.90511]
[1721291864028,2.9047,3442.7,3442.3,0.09067094]
[1721291864226,3.65414728,3442.8,3442.3,0.09067094]
[1721291864464,3.65414728,3442.8,3442.0,2.90521]
[1721291864638,3.65414728,3442.8,3442.4,0.09067094]
[1721291864639,0.36541473,3442.7,3442.4,0.09067094]
[1721291864839,2.90478,3442.6,3442.0,2.90521]
[1721291865065,3.27012473,3442.7,3442.5,0.09067094]
[1721291865425,3.27012473,3442.7,3442.1,2.90518]
[1721291865659,3.27012473,3442.7,3442.6,0.09072051]
[1721291865844,3.27012473,3442.7,3442.1,2.90518]
[1721291866054,3.27012473,3442.7,3442.6,0.09072051]
[1721291866259,3.27012473,3442.7,3442.1,2.90518]
[1721291866463,3.27012473,3442.7,3442.6,0.09072051]
[1721291867662,3.27012473,3442.7,3442.1,2.90518]
[1721291867884,3.27012473,3442.7,3442.6,0.09072051]
[1721291868256,3.27012473,3442.7,3442.1,2.90518]
[1721291868461,3.27012473,3442.7,3442.6,0.09072051]
[1721291868949,3.27012473,3442.7,3442.1,2.90518]
[1721291869147,3.27012473,3442.7,3442.2,0.09072051]
[1721291870360,2.90471,3442.7,3442.2,0.09072051]
[1721291871468,5.80948,3442.7,3442.2,0.09072051]
[1721291871674,2.90471,3442.7,3442.2,0.09072051]
[1721291871900,2.90471,3442.7,3442.0,2.90523]
[1721291872055,5.80947,3442.7,3442.3,0.09072051]
[1721291872256,0.580947,3442.6,3442.0,2.90523]
[1721291872456,2.90492,3442.5,3442.4,0.09072051]
[1721291872649,2.9051,3442.3,3441.6,2.90559]
[1721291872852,2.9051,3442.3,3441.6,2.90556]
[1721291872853,2.90509,3442.3,3441.6,2.90556]
[1721291873147,2.90509,3442.3,3441.7,2.99625051]
[1721291873451,6.6883037,3442.3,3441.7,2.99625051]
[1721291876246,2.90512,3442.2,3441.7,0.09072051]
[1721291876771,2.90512,3442.2,3441.6,2.90556]
[1721291876984,2.9052,3442.1,3441.6,2.90556]
[1721291877341,2.9052,3442.1,3441.7,0.09077628]
[1721291878056,2.9052,3442.1,3441.4,5.33813]
[1721291878254,2.9052,3442.1,3441.8,0.09077628]
[1721291878575,2.9052,3442.1,3441.3,2.90585]
[1721291878576,2.90537,3441.9,3441.3,2.90585]
[1721291878789,0.87663578,3441.8,3441.3,2.90585]
[1721291879343,0.87663578,3441.8,3441.3,2.90581]
[1721291879591,0.87663578,3441.8,3441.4,2.90579]
[1721291880795,2.90529,3442.0,3441.4,2.90579]
[1721291880796,0.87666438,3441.7,3441.4,2.90579]
[1721291881001,2.90529,3442.0,3441.4,2.90579]
[1721291881201,0.87665183,3441.9,3441.4,2.90579]
[1721291881479,0.87665183,3441.9,3441.4,3.713704]
[1721291881783,0.87665183,3441.8,3441.4,6.619414]
[1721291881959,0.87665183,3441.7,3441.5,2.9057]
[1721291883352,0.35434376,3441.8,3441.7,2.90554]
[1721291883558,0.35434376,3441.8,3441.7,5.26074]
[1721291883915,0.35434376,3441.8,3441.7,9.30753679]
[1721291884250,0.35434376,3441.8,3441.7,12.21307679]
[1721291884453,0.35434376,3441.8,3441.7,13.22315459]
[1721291884712,0.35434376,3441.8,3441.7,14.73825186]
[1721291886410,0.35434376,3441.8,3441.7,12.21307679]
[1721291886706,0.35434376,3441.8,3441.7,9.30753679]
[1721291890384,0.35434376,3441.8,3441.7,12.21307679]
[1721291890583,0.35434376,3441.8,3441.7,13.22318025]
[1721291891199,0.35434376,3441.8,3441.7,12.21307679]
[1721291892779,0.35434376,3441.8,3441.7,12.30361762]
[1721291894575,0.35434376,3441.8,3441.7,8.25682083]
[1721291894903,0.35434376,3441.8,3441.7,5.90162083]
[1721291895111,0.35434376,3441.8,3441.7,2.99608083]
[1721291895737,0.35434376,3441.8,3441.7,0.09054083]
[1721291896021,0.35434376,3441.8,3441.6,2.90561]
[1721291896179,0.35434376,3441.8,3441.7,0.0875228]
[1721291896507,0.35434376,3441.8,3441.5,2.90564]
[1721291896697,0.35434376,3441.8,3441.7,0.0875228]
[1721291896899,0.35434376,3441.8,3441.5,2.90564]
[1721291897082,0.35434376,3441.8,3441.7,0.0875228]
[1721291897282,0.35434376,3441.8,3441.5,2.90564]
[1721291897610,0.35434376,3441.8,3441.6,2.90562]
[1721291897805,0.35434376,3441.8,3441.7,0.0875228]
[1721291899211,0.35434376,3441.8,3441.6,2.90561]
[1721291899383,0.35434376,3441.8,3441.7,0.0875228]
[1721291899809,0.35434376,3441.8,3441.3,2.90583]
[1721291900113,0.35434376,3441.8,3441.4,0.6375228]
[1721291900515,0.35434376,3441.8,3441.5,2.90565]
[1721291900681,0.35434376,3441.8,3441.6,2.90562]
[1721291901143,0.35434376,3441.8,3441.7,0.0875228]
[1721291902229,0.35434376,3441.8,3441.7,6.71539728]
[1721291902536,0.35434376,3441.8,3441.7,6.4486028]
[1721291904037,0.35434376,3441.8,3441.7,9.3541428]
[1721291904341,0.30373218,3441.8,3441.7,9.3541428]
[1721291906252,0.30373218,3441.8,3441.7,10.36422775]
[1721291906545,0.30373218,3441.8,3441.7,10.3642288]
[1721291908851,0.30373218,3441.8,3441.7,11.87934901]
[1721291909459,0.30373218,3441.8,3441.7,10.3642288]
[1721291909639,0.30373218,3441.8,3441.7,10.36421923]
[1721291912554,0.30373218,3441.8,3441.7,9.3541428]
[1721291912855,0.30373218,3441.8,3441.7,10.36422648]
[1721291915637,0.30373218,3441.8,3441.7,9.3541428]
[1721291915849,0.30373218,3441.8,3441.7,10.36421386]
[1721291919578,0.30373218,3441.8,3441.7,6.4486028]
[1721291922769,2.58113218,3441.8,3441.7,6.4486028]
[1721291922978,0.30373218,3441.8,3441.7,6.4486028]
[1721291926167,0.30373218,3441.8,3441.7,7.45871098]
[1721291926351,0.30373218,3441.8,3441.7,8.28571098]
[1721291926795,0.30373218,3441.8,3441.7,7.2756028]
[1721291927619,0.30373218,3441.8,3441.7,8.28570783]
[1721291927772,0.30373218,3441.8,3441.7,11.19124783]
[1721291929008,0.30373218,3441.8,3441.7,12.70637268]
[1721291930169,0.35433693,3441.8,3441.7,12.70637268]
[1721291931391,0.35433693,3441.8,3441.7,12.70638657]
[1721291934593,0.35433693,3441.8,3441.7,12.70635547]
[1721291936081,2.70523693,3441.8,3441.7,6.34527547]
[1721291936312,2.70523693,3441.8,3441.7,0.0875228]
[1721291936481,2.70523693,3441.8,3441.7,0.827]
[1721291936691,2.70523693,3441.8,3441.7,0.91441126]
[1721291937240,2.70523693,3441.8,3441.7,3.81995126]
[1721291938191,2.70523693,3441.8,3441.7,2.99295126]
[1721291938491,2.70523693,3441.8,3441.7,5.89849126]
[1721291938902,2.70523693,3441.8,3441.7,6.44849126]
[1721291939118,2.70523693,3441.8,3441.7,3.54295126]
[1721291939889,3.00613251,3441.8,3441.7,0.08741126]
[1721291940122,3.00613251,3441.8,3441.6,2.90562]
[1721291940322,3.00613251,3441.8,3441.7,0.08741126]
[1721291941434,2.70523693,3441.8,3441.7,0.08741126]
[1721291943915,2.70523693,3441.8,3441.7,2.99295126]
[1721291944296,2.70523693,3441.8,3441.7,0.08741126]
[1721291944638,2.70523693,3441.8,3441.7,2.90554]
[1721291944930,2.70523693,3441.8,3441.7,2.99306973]
[1721291946135,2.70523693,3441.8,3441.7,0.08752973]
[1721291946306,2.70523693,3441.8,3441.5,2.90563]
[1721291946505,2.70523693,3441.8,3441.7,0.08752973]
[1721291946837,2.70523693,3441.8,3441.6,2.90562]
[1721291947018,2.70523693,3441.8,3441.7,0.08752973]
[1721291947611,2.70523693,3441.8,3441.4,2.90574]
[1721291947811,2.70523693,3441.8,3441.7,0.08752973]
[1721291948337,2.70523693,3441.8,3441.5,3.45569]
[1721291948657,2.70523693,3441.8,3441.7,0.08752973]
[1721291948867,4.17318135,3441.8,3441.3,2.90582]
[1721291949151,0.87663097,3441.7,3441.4,2.90579]
[1721291949458,0.87665177,3441.6,3441.4,2.99331973]
[1721291949747,0.87665177,3441.5,3441.4,2.99331973]
[1721291950349,0.30375314,3441.5,3441.4,2.99331973]
[1721291950519,1.18040491,3441.5,3441.4,2.99331973]
[1721291951815,1.18040491,3441.5,3441.4,0.08752973]
[1721291952213,1.18040491,3441.5,3441.3,2.90586]
[1721291952439,0.30375314,3441.5,3441.4,0.0875212]